fUSD/lending_fUSD_20241101
["ID","MTS","AMOUNT","RATE_DAILY","PERIOD"]
[341139805,1730467842933,-500.0,0.00041643,3]
[341139806,1730467842941,-728.25,0.00041643,3]
[341139807,1730467842951,-500.0,0.00041643,3]
[341139808,1730467842960,-500.0,0.00041643,3]
[341139809,1730467842968,-245.38586777,0.00041643,3]
[341139810,1730467842978,-300.0,0.00041643,3]
[341139811,1730467842987,-330.39540014,0.00041643,3]
[341139812,1730467842997,-1367.72,0.00041643,3]
[341139813,1730467843006,-500.0,0.00041643,3]
[341139814,1730467843015,-468.17107418,0.00041643,3]
[341139815,1730467843026,-525.39,0.00041643,3]
[341139816,1730467843036,-500.0,0.00041643,3]
[341139817,1730467843045,-1104.76,0.00041643,3]
[341139818,1730467843054,-899.33,0.00041643,3]
[341139819,1730467843064,-510.49,0.00041643,3]
[341139820,1730467843073,-500.0,0.00041643,3]
[341139821,1730467843082,-539.09,0.00041643,3]
[341139822,1730467843091,-500.0,0.00041643,3]
[341139823,1730467843100,-878.55,0.00041643,3]
[341139824,1730467843110,-2481.37,0.00041643,3]
[341139825,1730467843119,-500.0,0.00041643,3]
[341139826,1730467843128,-500.0,0.00041643,3]
[341139827,1730467843138,-500.0,0.00041643,3]
[341139828,1730467843147,-500.0,0.00041643,3]
[341139829,1730467843156,-500.0,0.00041643,3]
[341139830,1730467843165,-569.13,0.00041643,3]
[341139831,1730467843174,-1507.82,0.00041643,3]
[341139832,1730467843184,-500.0,0.00041643,3]
[341139833,1730467843193,-514.81,0.00041643,3]
[341139834,1730467843202,-700.38,0.00041643,3]
[341139835,1730467843211,-510.93,0.00041643,3]
[341139836,1730467843220,-1093.19,0.00041643,3]
[341139837,1730467843230,-682.92,0.00041643,3]
[341139838,1730467843239,-2127.76,0.00041643,3]
[341139839,1730467843249,-1117.6,0.00041643,3]
[341139840,1730467843258,-500.0,0.00041643,3]
[341139841,1730467843268,-500.0,0.00041643,3]
[341139842,1730467843279,-525.8014963,0.00041643,3]
[341139843,1730467843288,-500.0,0.00041643,3]
[341139844,1730467843298,-150.0,0.00041691,2]
[341139845,1730467843307,-641.0,0.000417,7]
[341139846,1730467843316,-1700.0,0.000417,15]
[341139847,1730467843326,-6251.0,0.00041758,2]
[341139848,1730467843336,-621.0,0.0004179,2]
[341139849,1730467843345,-153.0,0.00041793,31]
[341139850,1730467843355,-1078.04,0.00041799,3]
[341139851,1730467843364,-3500.0,0.000418,15]
[341139852,1730467843374,-15078.0,0.000418,2]
[341139853,1730467843383,-153.0,0.00041844,31]
[341139854,1730467843392,-150.0,0.00041882,2]
[341139855,1730467843410,-210.0,0.000419,14]
[341139856,1730467843421,-172.53905098,0.000419,5]
[341139857,1730467843431,-424.562449,0.000419,49]
[341139858,1730467843440,-5200.0,0.000419,15]
[341139859,1730467843450,-500.0,0.00041913,3]
[341139860,1730467843460,-500.0,0.00041913,3]
[341139861,1730467843469,-500.0,0.00041914,3]
[341139862,1730467843479,-500.0,0.00041914,3]
[341139863,1730467843488,-500.0,0.00041914,3]
[341139864,1730467843498,-500.0,0.00041914,3]
[341139865,1730467843508,-500.0,0.00041916,3]
[341139866,1730467843517,-501.66205392,0.00041916,3]
[341139867,1730467843529,-500.0,0.00041916,3]
[341139868,1730467843539,-621.20019723,0.00041916,3]
[341139869,1730467843549,-500.0,0.00041917,3]
[341139870,1730467843558,-500.0,0.00041917,3]
[341139871,1730467843570,-200.0,0.00041917,3]
[341139872,1730467843580,-500.0,0.00041917,3]
[341139873,1730467843590,-500.0,0.00041917,3]
[341139874,1730467843600,-153.16,0.00041917,30]
[341139875,1730467843610,-500.0,0.00041917,3]
[341139876,1730467843620,-500.0,0.00041917,3]
[341139877,1730467843630,-735.57,0.00041917,3]
[341139878,1730467843640,-500.0,0.00041917,3]
[341139879,1730467843650,-206.18,0.00041917,3]
[341139880,1730467843659,-500.0,0.00041917,3]
[341139881,1730467843669,-559.89,0.00041917,3]
[341139882,1730467843678,-500.0,0.00041917,3]
[341139883,1730467843687,-500.0,0.00041917,3]
[341139884,1730467843696,-500.0,0.00041917,3]
[341139885,1730467843706,-500.0,0.00041917,3]
[341139886,1730467843716,-500.0,0.00041917,3]
[341139887,1730467843726,-500.0,0.00041917,3]
[341139888,1730467843736,-500.0,0.00041917,3]
[341139889,1730467843747,-500.0,0.00041917,3]
[341139890,1730467843757,-500.0,0.00041917,3]
[341139891,1730467843767,-653.75,0.00041917,3]
[341139892,1730467843780,-500.0,0.00041917,3]
[341139893,1730467843790,-546.36,0.00041917,3]
[341139894,1730467843800,-500.0,0.00041917,3]
[341139895,1730467843809,-500.0,0.00041917,3]
[341139896,1730467843820,-500.0,0.00041917,3]
[341139897,1730467843831,-500.0,0.00041917,3]
[341139898,1730467843841,-1323.14,0.00041917,3]
[341139899,1730467843851,-500.0,0.00041917,7]
[341139900,1730467843861,-500.0,0.00041917,3]
[341139901,1730467843871,-500.0,0.00041917,3]
[341139902,1730467843882,-500.0,0.00041917,3]
[341139903,1730467843892,-500.0,0.00041917,3]
[341139904,1730467843903,-500.0,0.00041917,3]
[341139905,1730467843912,-500.0,0.00041917,3]
[341139906,1730467843922,-500.0,0.00041917,3]
[341139907,1730467843931,-500.0,0.00041917,3]
[341139908,1730467843941,-500.0,0.00041917,3]
[341139909,1730467843951,-150.19535545,0.00041917,3]
[341139910,1730467843961,-500.0,0.00041917,3]
[341139911,1730467843972,-757.38,0.00041917,3]
[341139912,1730467843982,-500.0,0.00041917,3]
[341139913,1730467843992,-500.0,0.00041917,3]
[341139914,1730467844002,-500.0,0.00041917,3]
[341139915,1730467844013,-500.0,0.00041917,3]
[341139916,1730467844022,-849.82,0.00041917,3]
[341139917,1730467844032,-500.0,0.00041917,3]
[341139918,1730467844042,-537.47,0.00041917,3]
[341139919,1730467844053,-738.17,0.00041917,3]
[341139920,1730467844063,-500.0,0.00041917,3]
[341139921,1730467844073,-1323.26,0.00041917,3]
[341139922,1730467844083,-500.0,0.00041917,3]
[341139923,1730467844092,-500.0,0.00041917,3]
[341139924,1730467844102,-706.49,0.00041917,3]
[341139925,1730467844112,-500.0,0.00041917,3]
[341139926,1730467844122,-500.0,0.00041917,3]
[341139927,1730467844132,-500.0,0.00041917,3]
[341139928,1730467844141,-500.0,0.00041917,3]
[341139929,1730467844151,-506.37,0.00041917,3]
[341139930,1730467844160,-500.0,0.00041917,3]
[341139931,1730467844169,-500.0,0.00041917,3]
[341139932,1730467844179,-698.11,0.00041917,3]
[341139933,1730467844275,-500.0,0.00041917,3]
[341139934,1730467844292,-885.85,0.00041917,3]
[341139935,1730467844302,-500.0,0.00041917,3]
[341139936,1730467844312,-1043.79,0.00041917,3]
[341139937,1730467844321,-500.0,0.00041917,3]
[341139938,1730467844331,-764.08,0.00041917,3]
[341139939,1730467844340,-500.0,0.00041917,3]
[341139940,1730467844349,-500.0,0.00041917,3]
[341139941,1730467844358,-2932.93,0.00041917,3]
[341139942,1730467844367,-500.0,0.00041917,3]
[341139943,1730467844377,-500.0,0.00041917,3]
[341139944,1730467844387,-1648.66,0.00041917,3]
[341139945,1730467844396,-500.0,0.00041917,3]
[341139946,1730467844406,-500.0,0.00041917,3]
[341139947,1730467844415,-500.0,0.00041917,3]
[341139948,1730467844424,-500.0,0.00041917,3]
[341139949,1730467844433,-569.27,0.00041917,3]
[341139950,1730467844443,-1003.82,0.00041917,3]
[341139951,1730467844452,-500.0,0.00041917,3]
[341139952,1730467844461,-509.38,0.00041917,3]
[341139953,1730467844470,-1719.39,0.00041917,3]
[341139954,1730467844479,-500.0,0.00041917,3]
[341139955,1730467844488,-500.0,0.00041917,3]
[341139956,1730467844497,-500.0,0.00041917,3]
[341139957,1730467844507,-562.83,0.00041917,3]
[341139958,1730467844516,-500.0,0.00041917,3]
[341139959,1730467844527,-500.0,0.00041917,3]
[341139960,1730467844537,-728.25,0.00041917,3]
[341139961,1730467844546,-500.0,0.00041917,3]
[341139962,1730467844556,-500.0,0.00041917,3]
[341139963,1730467844566,-300.0,0.00041917,3]
[341139964,1730467844576,-1367.72,0.00041917,3]
[341139965,1730467844586,-500.0,0.00041917,3]
[341139966,1730467844597,-525.39,0.00041917,3]
[341139967,1730467844607,-500.0,0.00041917,3]
[341139968,1730467844618,-1104.76,0.00041917,3]
[341139969,1730467844627,-899.33,0.00041917,3]
[341139970,1730467844637,-510.49,0.00041917,3]
[341139971,1730467844646,-500.0,0.00041917,3]
[341139972,1730467844655,-539.09,0.00041917,3]
[341139973,1730467844665,-500.0,0.00041917,3]
[341139974,1730467844674,-878.55,0.00041917,3]
[341139975,1730467844685,-2481.37,0.00041917,3]
[341139976,1730467844694,-332.25754416,0.00041917,3]
[341139977,1730467844704,-500.0,0.00041917,3]
[341139978,1730467844714,-500.0,0.00041917,3]
[341139979,1730467844724,-500.0,0.00041917,3]
[341139980,1730467844733,-569.13,0.00041917,3]
[341139981,1730467844743,-500.0,0.00041917,3]
[341139982,1730467844752,-1507.82,0.00041917,3]
[341139983,1730467844762,-514.81,0.00041917,3]
[341139984,1730467844772,-700.38,0.00041917,3]
[341139985,1730467844786,-510.93,0.00041917,3]
[341139986,1730467844796,-1093.19,0.00041917,3]
[341139987,1730467844805,-682.92,0.00041917,3]
[341139988,1730467844814,-2127.76,0.00041917,3]
[341139989,1730467844826,-1117.6,0.00041917,3]
[341139990,1730467844835,-500.0,0.00041917,3]
[341139991,1730467844844,-500.0,0.00041917,3]
[341139992,1730467844854,-500.0,0.00041917,3]
[341139993,1730467844865,-200.0,0.00041922,7]
[341139994,1730467844874,-150.0,0.0004196,2]
[341139995,1730467844884,-543.31,0.00041963,2]
[341139996,1730467844895,-2252.5820038,0.00041971,2]
[341139997,1730467844907,-5551.5799011,0.00041971,2]
[341139998,1730467844917,-203.83432241,0.00041973,10]
[341139999,1730467844927,-448.64,0.00041981,2]
[341140000,1730467844937,-262.92754314,0.0004199,2]
[341140001,1730467844947,-150.0,0.00041998,2]
[341140002,1730467844957,-18881.81664691,0.00041999,2]
[341140003,1730467844967,-500.0,0.00041999,2]
[341140004,1730467844976,-199.3795548,0.00041999,60]
[341140005,1730467844987,-1078.04,0.00041999,3]
[341140006,1730467844997,-1078.04,0.00041999,3]
[341140007,1730467845007,-1078.04,0.00041999,3]
[341140008,1730467845017,-1078.04,0.00041999,3]
[341140009,1730467845030,-1078.04,0.00041999,3]
[341140010,1730467845041,-500.0,0.00041999,3]
[341140011,1730467845052,-246.01630993,0.00041999,3]
[341140012,1730467845063,-999.0,0.00041999,120]
[341140013,1730467845080,-24814.48393097,0.00042,30]
[341140014,1730467845376,-159.393,0.00040924,2]
[341140015,1730467845390,-192.29546396,0.00042,30]
[341140017,1730467845405,-1001.65909385,0.00042,30]
[341140018,1730467845664,-1406.0,0.00040679,2]
[341140019,1730467845682,-608.9391,0.00040679,2]
[341140020,1730467845698,-151.0,0.0004088,14]
[341140021,1730467845708,-159.393,0.00040924,2]
[341140022,1730467845718,-159.393,0.00040924,2]
[341140023,1730467845729,-159.393,0.00040924,2]
[341140024,1730467845739,-159.393,0.00040924,2]
[341140025,1730467845749,-159.393,0.00040924,2]
[341140026,1730467845760,-151.0,0.00041095,14]
[341140027,1730467845770,-1690.89599077,0.00042,30]
[341140028,1730467845787,-510.21768546,0.00042,30]
[341140029,1730467936457,248.98175969,0.00017605,2]
[341140030,1730467936490,500.0,0.000314,30]
[341140031,1730467938034,163.165,0.00035865,2]
[341140032,1730468129307,156.83,0.00015342,2]
[341140033,1730468370198,-374.30211173,0.000244,2]
[341140034,1730468422835,-189.814,0.00034132,2]
[341140035,1730468422856,-490.0,0.00035,30]
[341140036,1730468423002,-165.97,0.00037705,2]
[341140037,1730468423023,-172.32534949,0.00038126,2]
[341140038,1730468442794,-604.9,0.000385,2]
[341140039,1730468442815,-840.0,0.000385,2]
[341140040,1730468442837,-156.9,0.00038554,2]
[341140041,1730468442859,-156.9,0.00038631,2]
[341140042,1730468442880,-17623.19065051,0.00038631,2]
[341140043,1730468583697,-910.83,0.00038287,120]
[341140044,1730468583719,-250.0,0.00038602,120]
[341140045,1730468583742,-166.14,0.00038942,120]
[341140046,1730468583763,-165.548,0.00038967,120]
[341140047,1730468588743,183.96,0.00019178,2]
[341140048,1730468606136,-165.622,0.0003569,30]
[341140049,1730468623824,159.1,0.00015342,2]
[341140050,1730468843176,-335.43767582,0.00034448,2]
[341140051,1730468843198,-262.82112176,0.00034484,2]
[341140052,1730468843221,-150.0,0.00034548,10]
[341140053,1730468843244,-400.1465,0.00034584,2]
[341140054,1730468843265,-205.25175,0.00034584,2]
[341140055,1730468843286,-1023.00255469,0.00036511,2]
[341140056,1730468853166,-1334.77699967,0.00036511,2]
[341140057,1730468853186,-605.09,0.00036511,2]
[341140058,1730468853206,-597.12,0.00037795,2]
[341140059,1730468853226,-250.0,0.00037933,2]
[341140060,1730468853247,-23900.0,0.00037951,2]
[341140061,1730468853266,-999.99,0.00037951,2]
[341140062,1730468853287,-258.24,0.00037951,2]
[341140063,1730468853307,-204.88,0.00037951,2]
[341140064,1730468853327,-250.0,0.0003796,2]
[341140065,1730468853348,-9999.99,0.0003796,2]
[341140066,1730468853376,-150.0,0.00037985,7]
[341140067,1730468853400,-145.83933306,0.00038011,2]
[341140068,1730468854351,-256.71855468,0.00037833,2]
[341140069,1730468854374,-14.16066694,0.00038011,2]
[341140070,1730468854394,-200.0,0.00038135,2]
[341140071,1730468854420,-153.0,0.0003816,2]
[341140072,1730468854444,-153.0,0.0003816,2]
[341140073,1730468854467,-153.0,0.00038165,2]
[341140074,1730468854490,-153.0,0.00038165,2]
[341140075,1730468854511,-153.0,0.0003817,2]
[341140076,1730468854533,-153.0,0.0003817,2]
[341140077,1730468854552,-488.87,0.00038202,2]
[341140078,1730468854573,-4988.29692641,0.0003821,2]
[341140079,1730468964471,166.64,0.00036425,2]
[341140080,1730468991400,574.83,0.00036399,2]
[341140087,1730469031726,-165.97,0.00037675,2]
[341140088,1730469031738,-1128.0,0.0003817,2]
[341140089,1730469031747,-5848.28307359,0.0003821,2]
[341140090,1730469031756,-1170.53,0.00038236,2]
[341140091,1730469031765,-200.0,0.00038261,2]
[341140092,1730469031774,-799.67,0.00038337,2]
[341140093,1730469031784,-250.0,0.00038404,120]
[341140094,1730469031793,-2622.06,0.00038449,2]
[341140095,1730469031803,-500.0,0.0003856,2]
[341140096,1730469031812,-154.61,0.0003856,120]
[341140097,1730469031821,-574.83,0.00038663,2]
[341140098,1730469031831,-156.9,0.00038708,2]
[341140099,1730469031839,-6486.64,0.00038716,2]
[341140100,1730469031848,-157.92,0.0003874,2]
[341140101,1730469031857,-156.9,0.00038785,2]
[341140102,1730469031867,-156.9,0.00038862,2]
[341140103,1730469031876,-156.9,0.00038939,2]
[341140104,1730469031886,-252.766,0.00039342,54]
[341140105,1730469031896,-249.44,0.00039442,10]
[341140106,1730469031907,-207.86,0.00039442,10]
[341140107,1730469031917,-173.22,0.00039442,10]
[341140108,1730469031926,-25780.01564109,0.00039452,2]
[341140109,1730469032035,-262.48322908,0.00039452,2]
[341140110,1730469032046,-2833.80267241,0.00039452,2]
[341140111,1730469032078,-779.03045676,0.00039452,2]
[341140112,1730469032090,-1428.30294052,0.00039452,2]
[341140113,1730469032106,-67221.76506014,0.00039452,2]
[341140114,1730469032117,-191.86,0.0003958,2]
[341140115,1730469032126,-165.97,0.00039794,2]
[341140116,1730469032135,-872.0,0.00039798,2]
[341140117,1730469032144,-748.08,0.0003989,3]
[341140119,1730469032154,-4707.8385,0.000399,2]
[341140121,1730469032163,-2475.0,0.000399,2]
[341140123,1730469032172,-563.7367,0.000399,2]
[341140125,1730469032181,-20007.393,0.000399,2]
[341140127,1730469032191,-161.73875361,0.000399,2]
[341140129,1730469032200,-147963.90583974,0.0004,2]
[341140131,1730469032210,-328.75,0.0004,120]
[341140133,1730469032221,-1193.27112587,0.0004,30]
[341140135,1730469032229,-489.86546797,0.0004,30]
[341140136,1730469032243,-153.0,0.00040369,2]
[341140138,1730469032254,-153.0,0.00040425,2]
[341140139,1730469032263,-170.84,0.00040444,2]
[341140141,1730469032272,-153.0,0.00040475,2]
[341140143,1730469032281,-1610.36650145,0.00040678,2]
[341140145,1730469032292,-797.61629855,0.00040678,2]
[341140147,1730469032301,-712.17394789,0.00040678,2]
[341140155,1730469032366,-295.44814184,0.00040678,2]
[341140158,1730469032377,-93603.57791027,0.00040678,2]
[341140160,1730469032386,-441.2071,0.00040696,2]
[341140162,1730469032395,-451.0,0.00040804,2]
[341140163,1730469032404,-557.0,0.00040804,2]
[341140165,1730469032413,-812.0,0.00040804,2]
[341140166,1730469032422,-808.0,0.00040804,2]
[341140167,1730469032433,-344.549,0.00040804,2]
[341140168,1730469032443,-574.83,0.00040926,2]
[341140169,1730469032452,-500.0,0.00041095,3]
[341140170,1730469032461,-612.98,0.00041095,3]
[341140171,1730469032470,-500.0,0.00041095,3]
[341140172,1730469032481,-500.0,0.00041095,3]
[341140173,1730469032492,-500.0,0.00041095,3]
[341140174,1730469032501,-500.0,0.00041095,3]
[341140175,1730469032511,-500.0,0.00041095,3]
[341140176,1730469032520,-500.0,0.00041095,7]
[341140177,1730469032530,-500.0,0.00041095,3]
[341140178,1730469032539,-500.0,0.00041095,3]
[341140179,1730469032548,-500.0,0.00041095,3]
[341140180,1730469032558,-500.0,0.00041095,3]
[341140181,1730469032566,-420.15837696,0.00041095,3]
[341140182,1730469032575,-500.0,0.00041095,3]
[341140183,1730469032584,-500.0,0.00041095,3]
[341140184,1730469032594,-500.0,0.00041095,3]
[341140185,1730469032603,-500.0,0.00041095,3]
[341140186,1730469032612,-500.0,0.00041095,3]
[341140187,1730469032621,-500.0,0.00041095,3]
[341140188,1730469032630,-171.81,0.00041095,3]
[341140189,1730469032639,-500.0,0.00041095,3]
[341140190,1730469032649,-500.0,0.00041095,3]
[341140191,1730469032658,-418.75908819,0.00041095,3]
[341140192,1730469032667,-500.0,0.00041095,3]
[341140193,1730469032676,-500.0,0.00041095,3]
[341140194,1730469032686,-500.0,0.00041095,3]
[341140195,1730469032695,-500.0,0.00041095,3]
[341140196,1730469032704,-500.0,0.00041095,3]
[341140197,1730469032713,-500.0,0.00041095,3]
[341140198,1730469032722,-500.0,0.00041095,3]
[341140199,1730469032731,-500.0,0.00041095,3]
[341140200,1730469032743,-500.0,0.00041095,3]
[341140201,1730469032752,-300.0,0.00041095,3]
[341140202,1730469032761,-500.0,0.00041095,3]
[341140203,1730469032770,-500.0,0.00041095,3]
[341140204,1730469032779,-544.8,0.00041095,3]
[341140205,1730469032789,-606.88,0.00041095,3]
[341140206,1730469032798,-500.0,0.00041095,3]
[341140207,1730469032807,-1102.62,0.00041095,3]
[341140208,1730469032816,-500.0,0.00041095,3]
[341140209,1730469032826,-500.0,0.00041095,3]
[341140210,1730469032834,-297.43033882,0.00041095,3]
[341140211,1730469032952,-296.67951999,0.00041095,3]
[341140212,1730469032962,-358.46582915,0.00041095,3]
[341140213,1730469032971,-500.0,0.00041095,3]
[341140214,1730469032980,-500.0,0.00041095,3]
[341140215,1730469032991,-500.0,0.00041095,3]
[341140216,1730469033001,-500.0,0.00041095,3]
[341140217,1730469033011,-511.99344108,0.00041095,3]
[341140218,1730469033021,-500.0,0.00041095,3]
[341140219,1730469033031,-500.0,0.00041095,3]
[341140220,1730469033041,-500.0,0.00041095,3]
[341140221,1730469033050,-631.15,0.00041095,3]
[341140222,1730469033060,-190.67952411,0.00041095,3]
[341140223,1730469033070,-500.0,0.00041095,3]
[341140224,1730469033079,-500.0,0.00041095,3]
[341140225,1730469033089,-500.0,0.00041095,3]
[341140226,1730469033099,-500.0,0.00041095,3]
[341140227,1730469033108,-314.08487158,0.00041095,3]
[341140228,1730469033120,-394.09512842,0.00041095,3]
[341140229,1730469033130,-500.0,0.00041095,3]
[341140230,1730469033139,-500.0,0.00041095,3]
[341140231,1730469033149,-500.0,0.00041095,3]
[341140232,1730469033158,-615.14,0.00041095,3]
[341140233,1730469033168,-500.0,0.00041095,3]
[341140234,1730469033178,-500.0,0.00041095,3]
[341140235,1730469033188,-1102.71,0.00041095,3]
[341140236,1730469033197,-500.0,0.00041095,3]
[341140237,1730469033206,-500.0,0.00041095,3]
[341140238,1730469033216,-500.0,0.00041095,3]
[341140239,1730469033226,-200.0,0.00041095,3]
[341140240,1730469033238,-588.74,0.00041095,3]
[341140241,1730469033248,-718.69,0.00041095,3]
[341140242,1730469033258,-718.69,0.00041095,3]
[341140243,1730469033267,-500.0,0.00041095,3]
[341140244,1730469033277,-500.0,0.00041095,3]
[341140245,1730469033286,-500.0,0.00041095,3]
[341140246,1730469033296,-869.83,0.00041095,3]
[341140247,1730469033305,-589.1343596,0.00041095,3]
[341140248,1730469033315,-500.0,0.00041095,3]
[341140249,1730469033324,-738.21,0.00041095,3]
[341140250,1730469033333,-636.74,0.00041095,3]
[341140251,1730469033343,-500.0,0.00041095,3]
[341140252,1730469033354,-500.0,0.00041095,3]
[341140253,1730469033364,-500.0,0.00041095,3]
[341140254,1730469033374,-500.0,0.00041095,3]
[341140255,1730469033384,-500.0,0.00041095,3]
[341140256,1730469033393,-500.0,0.00041095,3]
[341140257,1730469033402,-500.0,0.00041095,3]
[341140258,1730469033412,-749.44,0.00041095,3]
[341140259,1730469033421,-500.0,0.00041095,3]
[341140260,1730469033431,-2444.11,0.00041095,3]
[341140261,1730469033443,-500.0,0.00041095,3]
[341140262,1730469033452,-1373.88,0.00041095,3]
[341140263,1730469033464,-500.0,0.00041095,3]
[341140264,1730469033476,-2067.8,0.00041095,3]
[341140265,1730469033489,-500.0,0.00041095,3]
[341140266,1730469033500,-1432.82,0.00041095,3]
[341140267,1730469033509,-836.51,0.00041095,3]
[341140268,1730469033520,-500.0,0.00041095,3]
[341140269,1730469033530,-500.0,0.00041095,3]
[341140270,1730469033540,-500.0,0.00041095,3]
[341140271,1730469033551,-500.0,0.00041095,3]
[341140272,1730469033564,-500.0,0.00041095,3]
[341140273,1730469033573,-500.0,0.00041095,3]
[341140274,1730469033582,-569.1,0.00041095,3]
[341140275,1730469033592,-500.0,0.00041095,3]
[341140276,1730469033601,-500.0,0.00041095,3]
[341140277,1730469033611,-500.0,0.00041095,3]
[341140278,1730469033620,-1139.77,0.00041095,3]
[341140279,1730469033630,-500.0,0.00041095,3]
[341140280,1730469033639,-920.64,0.00041095,3]
[341140281,1730469033649,-18.95049431,0.00041095,3]
[341140282,1730469033660,-481.04950569,0.00041095,3]
[341140283,1730469033670,-500.0,0.00041095,3]
[341140284,1730469033678,-500.0,0.00041095,3]
[341140285,1730469033688,-500.0,0.00041095,3]
[341140286,1730469033698,-500.0,0.00041095,3]
[341140287,1730469033707,-500.0,0.00041095,3]
[341140288,1730469033716,-1256.51,0.00041095,3]
[341140289,1730469033726,-500.0,0.00041095,3]
[341140290,1730469033736,-1216.11,0.00041095,3]
[341140291,1730469033745,-732.12,0.00041095,3]
[341140292,1730469033755,-910.99,0.00041095,3]
[341140293,1730469033765,-583.65,0.00041095,3]
[341140294,1730469033774,-500.0,0.00041095,3]
[341140295,1730469033783,-500.0,0.00041095,3]
[341140296,1730469033793,-931.33,0.00041095,3]
[341140297,1730469033802,-500.0,0.00041095,3]
[341140298,1730469033812,-500.0,0.00041095,3]
[341140299,1730469033821,-500.0,0.00041095,3]
[341140300,1730469033830,-1773.13,0.00041095,3]
[341140301,1730469033839,-500.0,0.00041095,3]
[341140302,1730469033849,-1000.0,0.00041096,13]
[341140303,1730469033858,-1000.0,0.00041096,13]
[341140304,1730469033867,-1000.0,0.00041096,13]
[341140305,1730469033877,-1000.0,0.00041096,13]
[341140306,1730469033886,-150.0,0.00041096,2]
[341140307,1730469033896,-157.0,0.00041096,2]
[341140308,1730469033905,-196.0,0.000411,2]
[341140309,1730469033914,-167.25,0.00041104,2]
[341140310,1730469033924,-179.34,0.00041181,120]
[341140311,1730469033933,-150.0,0.00041222,2]
[341140312,1730469033942,-500.86301168,0.00041243,10]
[341140313,1730469033952,-161.73875361,0.000413,28]
[341140314,1730469033961,-500.0,0.00041369,3]
[341140315,1730469033971,-612.98,0.00041369,3]
[341140316,1730469033980,-500.0,0.00041369,3]
[341140317,1730469033993,-500.0,0.00041369,3]
[341140318,1730469034002,-500.0,0.00041369,3]
[341140319,1730469034011,-401.38554081,0.00041369,3]
[341140320,1730469034020,-500.0,0.00041369,3]
[341140321,1730469034029,-328.95347754,0.00041369,7]
[341140322,1730469034039,-544.88614598,0.00041369,3]
[341140323,1730469034049,-500.0,0.00041369,3]
[341140324,1730469034059,-227.34079702,0.00041369,3]
[341140325,1730469034068,-413.1558675,0.00041369,3]
[341140326,1730469034078,-500.0,0.00041369,3]
[341140327,1730469034087,-500.0,0.00041369,3]
[341140328,1730469034097,-500.0,0.00041369,3]
[341140329,1730469034106,-357.57120193,0.00041369,3]
[341140331,1730469037814,-461.1035,0.00041095,3]
[341140333,1730469037938,-38.8965,0.00041095,3]
[341140334,1730469037947,-142.42879807,0.00041369,3]
[341140335,1730469037957,-478.04459604,0.00041369,3]
[341140336,1730469037967,-500.0,0.00041369,3]
[341140337,1730469037977,-171.81,0.00041369,3]
[341140338,1730469037986,-500.0,0.00041369,3]
[341140339,1730469037997,-500.0,0.00041369,3]